bitfinex-derivatives/quotes_BTCF0:USTF0_20241224
["timestamp","ask_amount","ask_price","bid_price","bid_amount"]
[1735002051184,0.00159685,94596.0,94595.0,0.24185152]
[1735002051387,0.00159685,94596.0,94595.0,0.052922]
[1735002051687,0.00254932,94596.0,94595.0,0.052922]
[1735002052787,0.00302847,94596.0,94595.0,0.052922]
[1735002055386,0.052914,94612.0,94595.0,0.052922]
[1735002055387,0.3608,94630.0,94613.0,0.052912]
[1735002055689,0.00056001,94632.0,94631.0,0.052902]
[1735002055886,0.00158581,94633.0,94631.0,0.052902]
[1735002056602,0.22180928,94650.0,94649.0,0.052892]
[1735002056789,0.22180928,94650.0,94649.0,0.413692]
[1735002057179,0.22180928,94650.0,94649.0,0.476792]
[1735002057488,0.052884,94664.0,94656.0,0.052888]
[1735002057790,4e-05,94666.0,94656.0,0.052888]
[1735002057985,4e-05,94666.0,94650.0,0.1604309]
[1735002058183,0.052891,94652.0,94651.0,0.01156376]
[1735002058484,0.052898,94640.0,94636.0,0.0529]
[1735002058688,0.052898,94640.0,94637.0,0.06446275]
[1735002058883,0.052898,94640.0,94638.0,0.01156375]
[1735002059194,0.052898,94640.0,94637.0,0.052899]
[1735002059195,0.052898,94640.0,94639.0,0.01155937]
[1735002059686,0.05434985,94640.0,94637.0,0.052899]
[1735002059885,0.05434985,94640.0,94638.0,0.0115585]
[1735002060090,0.05434985,94640.0,94637.0,0.052899]
[1735002060291,0.05434985,94640.0,94638.0,0.01156155]
[1735002060493,0.05434985,94640.0,94637.0,0.052899]
[1735002060494,0.05434985,94640.0,94639.0,0.01156155]
[1735002060692,0.00145185,94640.0,94634.0,0.3608]
[1735002060888,0.00145185,94640.0,94638.0,0.052898]
[1735002061092,0.00145185,94640.0,94639.0,0.01155549]
[1735002061290,0.00145185,94640.0,94638.0,0.052898]
[1735002061587,0.052894,94646.0,94639.0,0.01010628]
[1735002061785,0.3608,94652.0,94640.0,0.01010628]
[1735002061985,0.052895,94645.0,94639.0,0.052897]
[1735002062191,0.052895,94645.0,94640.0,0.052897]
[1735002063482,0.052895,94644.0,94640.0,0.052897]
[1735002064487,0.052923,94666.0,94640.0,0.052897]
[1735002064488,4e-05,94666.0,94665.0,0.052883]
[1735002064795,4e-05,94666.0,94665.0,0.413683]
[1735002065695,0.00149169,94666.0,94665.0,0.413683]
[1735002066000,0.4608,94700.0,94665.0,0.7216]
[1735002066187,0.1,94700.0,94677.0,0.413677]
[1735002066387,0.2075389,94700.0,94677.0,0.413677]
[1735002066593,0.052871,94687.0,94677.0,0.413677]
[1735002067099,0.052876,94679.0,94677.0,0.3608]
[1735002067283,0.3608,94684.0,94670.0,0.05288]
[1735002067598,0.052879,94674.0,94670.0,0.05288]
[1735002067994,0.052879,94674.0,94665.0,0.3608]
[1735002068292,0.1075389,94740.0,94677.0,0.052877]
[1735002068596,0.052876,94679.0,94677.0,0.052877]
[1735002069293,0.052878,94674.0,94673.0,0.3608]
[1735002071300,0.052888,94656.0,94655.0,0.71612]
[1735002071884,0.05397851,94656.0,94655.0,0.71612]
[1735002073590,0.052888,94656.0,94655.0,0.71612]
[1735002073791,0.05434033,94656.0,94655.0,0.71612]
[1735002076003,0.05434033,94656.0,94655.0,0.72754673]
[1735002076500,0.00145233,94656.0,94655.0,0.78043573]
[1735002078904,0.00145233,94656.0,94655.0,0.72754673]
[1735002079599,0.052888,94657.0,94655.0,0.72754673]
[1735002079901,0.00199699,94656.0,94655.0,0.3608]
[1735002080090,0.052893,94647.0,94645.0,0.54924384]
[1735002080294,0.0648,94646.0,94645.0,0.18844384]
[1735002080703,0.06679699,94646.0,94645.0,0.18844384]
[1735002080895,0.0648,94646.0,94645.0,0.18844384]
[1735002081092,0.06700576,94646.0,94645.0,0.18844384]
[1735002081804,0.052901,94634.0,94631.0,0.05302506]
[1735002082107,0.00220576,94633.0,94632.0,0.01154389]
[1735002082309,0.052892,94650.0,94632.0,0.07674389]
[1735002082511,0.052892,94650.0,94647.0,0.3608]
[1735002082709,0.052892,94650.0,94648.0,0.06443689]
[1735002083013,0.052892,94650.0,94649.0,0.01153546]
[1735002083703,0.052892,94650.0,94649.0,0.01153318]
[1735002086911,0.052887,94659.0,94649.0,0.0115502]
[1735002087107,0.052887,94659.0,94650.0,0.0115502]
[1735002087412,0.052887,94659.0,94651.0,0.0115502]
[1735002087602,0.052887,94659.0,94652.0,0.0115502]
[1735002087799,0.052887,94658.0,94657.0,0.18886454]
[1735002088004,0.052891,94651.0,94650.0,0.04632339]
[1735002088306,0.052891,94651.0,94641.0,0.31661848]
[1735002088307,0.052896,94642.0,94641.0,0.13531548]
[1735002088502,0.052901,94633.0,94632.0,0.37994218]
[1735002088811,0.413701,94633.0,94632.0,0.12446718]
[1735002089109,0.413701,94633.0,94614.0,0.44402588]
[1735002089110,0.713701,94633.0,94614.0,0.00076]
[1735002089410,0.713701,94633.0,94610.0,0.1075389]
[1735002089411,0.3608,94620.0,94610.0,0.1075389]
[1735002089611,0.3608,94623.0,94610.0,0.1075389]
[1735002089798,0.052913,94612.0,94610.0,0.1075389]
[1735002090005,0.052913,94612.0,94610.0,0.052914]
[1735002090309,0.00011755,94611.0,94610.0,0.052914]
[1735002092304,0.052915,94609.0,94607.0,0.2878]
[1735002093012,0.052916,94607.0,94605.0,0.052917]
[1735002093813,0.052916,94607.0,94606.0,0.3608]
[1735002111429,0.054916,94607.0,94606.0,0.3608]
[1735002112328,0.054916,94607.0,94606.0,0.413716]
[1735002113331,0.054916,94607.0,94606.0,0.42522393]
[1735002113527,0.054916,94607.0,94606.0,0.42522399]
[1735002113832,0.052916,94607.0,94606.0,0.42522399]
[1735002114025,0.054916,94607.0,94606.0,0.42522399]
[1735002114723,0.055916,94607.0,94606.0,0.42522399]
[1735002115233,0.052916,94607.0,94606.0,0.42522399]
[1735002115431,0.055916,94607.0,94606.0,0.42522399]
[1735002116024,0.055916,94607.0,94606.0,0.413716]
[1735002116237,0.055916,94607.0,94606.0,0.42523486]
[1735002116929,0.055916,94607.0,94606.0,0.37231886]
[1735002117136,0.055916,94607.0,94606.0,0.01151886]
[1735002117335,0.052916,94607.0,94606.0,0.01151886]
[1735002117535,0.052926,94589.0,94588.0,0.73873049]
[1735002118235,0.052926,94589.0,94588.0,0.3608]
[1735002118833,0.052926,94589.0,94588.0,0.3628]
[1735002119336,0.052926,94589.0,94588.0,0.002]
[1735002120130,0.117226,94589.0,94588.0,0.002]
[1735002121040,0.05293,94582.0,94581.0,0.00011545]
[1735002123947,0.05693,94582.0,94581.0,0.00011545]
[1735002124149,0.05293,94582.0,94581.0,0.00011545]
[1735002124353,0.05793,94582.0,94581.0,0.00111545]
[1735002126056,0.05801129,94582.0,94581.0,0.00111545]
[1735002126753,0.05301129,94582.0,94581.0,0.00011545]
[1735002126958,0.05901129,94582.0,94581.0,0.00111545]
[1735002127151,0.00608129,94582.0,94581.0,0.00111545]
[1735002127652,0.00608129,94582.0,94581.0,0.06841545]
[1735002128556,0.00608129,94582.0,94581.0,0.07840547]
[1735002130053,8.129e-05,94582.0,94581.0,0.07740547]
[1735002130255,0.00508129,94582.0,94581.0,0.07740547]
[1735002130558,8.129e-05,94582.0,94581.0,0.07740547]
[1735002130762,0.00508129,94582.0,94581.0,0.07740547]
[1735002131663,8.129e-05,94582.0,94581.0,0.07740547]
[1735002131864,0.00508129,94582.0,94581.0,0.07740547]
[1735002132665,0.0631,94603.0,94581.0,0.07740547]
[1735002132666,0.052918,94603.0,94602.0,0.052918]
[1735002133452,0.05295977,94603.0,94602.0,0.052918]
[1735002133964,0.05395977,94603.0,94602.0,0.052918]
[1735002135357,0.00104177,94603.0,94602.0,0.052918]
[1735002136855,0.00104177,94603.0,94602.0,0.06332057]
[1735002137964,4.177e-05,94603.0,94602.0,0.06532057]
[1735002138954,0.00158622,94608.0,94607.0,0.052916]
[1735002140954,0.00458622,94608.0,94607.0,0.052916]
[1735002141357,0.17903188,94635.0,94606.0,0.3608]
[1735002141561,0.17903188,94635.0,94626.0,0.3608]
[1735002141764,0.17903188,94635.0,94629.0,0.052903]
[1735002142357,0.17903188,94635.0,94627.0,0.0662]
[1735002142564,0.0529,94635.0,94627.0,0.0662]
[1735002143455,0.01053339,94636.0,94626.0,0.354]
[1735002143663,0.052904,94628.0,94626.0,0.354]
[1735002143869,0.052904,94628.0,94627.0,0.009]
[1735002144766,0.052908,94621.0,94620.0,0.052908]
[1735002145653,0.37104497,94637.0,94616.0,0.3608]
[1735002145861,0.05291,94618.0,94616.0,0.3608]
[1735002146066,0.05291,94618.0,94616.0,0.41371]
[1735002147168,0.052906,94624.0,94623.0,0.052905]
[1735002148461,0.37104497,94637.0,94616.0,0.3608]
[1735002148659,0.052906,94625.0,94621.0,0.052908]
[1735002148860,0.37104497,94637.0,94621.0,0.052908]
[1735002149068,0.052907,94623.0,94621.0,0.052908]
[1735002150061,0.009,94624.0,94623.0,0.052907]
[1735002150261,0.052904,94629.0,94627.0,0.052904]
[1735002151479,0.001,94629.0,94627.0,0.422704]
[1735002153465,0.001,94629.0,94627.0,0.349704]
[1735002154172,0.053904,94629.0,94627.0,0.402608]
[1735002155059,0.052907,94622.0,94621.0,0.052908]
[1735002155673,0.05291,94619.0,94618.0,0.052909]
[1735002155864,0.052911,94616.0,94614.0,0.01008293]
[1735002156066,0.052911,94616.0,94614.0,0.052912]
[1735002156269,0.4243,94626.0,94609.0,0.31851578]
[1735002156469,0.052914,94611.0,94610.0,0.052914]
[1735002157569,0.056914,94611.0,94610.0,0.052914]
[1735002159663,0.052915,94608.0,94607.0,0.3608]
[1735002161070,0.052915,94608.0,94606.0,0.052916]
[1735002161275,0.058915,94608.0,94606.0,0.052916]
[1735002162565,0.052915,94608.0,94606.0,0.052916]
[1735002162771,0.058915,94608.0,94607.0,0.001]
[1735002163272,0.052917,94604.0,94603.0,0.25201578]
[1735002164482,0.056917,94604.0,94603.0,0.25201578]
[1735002165972,0.006,94604.0,94603.0,0.25301578]
[1735002166166,0.3608,94631.0,94603.0,0.25301578]
[1735002166167,0.12629875,94609.0,94603.0,0.053918]
[1735002166365,0.12629875,94609.0,94608.0,0.413715]
[1735002166981,0.15787344,94616.0,94608.0,0.413715]
[1735002167183,0.15787344,94616.0,94615.0,0.413711]
[1735002167482,0.24893449,94632.0,94615.0,0.413711]
[1735002167483,0.052902,94632.0,94629.0,0.052903]
[1735002167678,0.052902,94632.0,94630.0,0.052903]
[1735002169869,0.052902,94632.0,94630.0,0.061903]
[1735002173690,0.052902,94632.0,94631.0,0.01159676]
[1735002174183,0.01057933,94633.0,94631.0,0.06449876]
[1735002174375,0.482239,94637.0,94632.0,0.01159676]
[1735002174679,0.4287,94637.0,94633.0,0.01159676]
[1735002174885,0.0529,94636.0,94634.0,0.01159676]
[1735002175085,0.0529,94636.0,94635.0,0.01159676]
[1735002176586,0.0539,94636.0,94635.0,0.02059676]
[1735002177579,0.0539,94636.0,94635.0,0.02060936]
[1735002178883,0.052907,94624.0,94622.0,0.25327325]
[1735002179978,0.052907,94624.0,94621.0,0.052908]
[1735002180185,0.061907,94624.0,94622.0,0.001]
[1735002182178,0.052907,94622.0,94621.0,0.25327325]
[1735002182889,0.009,94624.0,94611.0,0.30618725]
[1735002183275,0.0569,94628.0,94611.0,0.30618725]
[1735002183480,0.052908,94621.0,94611.0,0.30618725]
[1735002183689,0.052912,94615.0,94611.0,0.30618725]
[1735002183888,0.0626,94621.0,94611.0,0.30618725]
[1735002184189,0.052913,94613.0,94612.0,0.25327325]
[1735002185194,0.3608,94620.0,94607.0,0.31659157]
[1735002185391,0.052915,94608.0,94607.0,0.31659157]
[1735002186583,0.3608,94610.0,94600.0,0.052919]
[1735002186793,0.052919,94602.0,94600.0,0.052919]
[1735002188887,0.056919,94602.0,94600.0,0.052919]
[1735002189492,0.056919,94602.0,94598.0,0.00158552]
[1735002189493,0.05292,94599.0,94598.0,0.00158552]
[1735002189681,0.05292,94599.0,94597.0,0.25331995]
[1735002189883,0.0688,94598.0,94597.0,0.25331995]
[1735002190787,0.0688,94598.0,94587.0,0.25331995]
[1735002190987,0.052926,94588.0,94587.0,0.25331995]
[1735002192189,0.05293,94582.0,94578.0,0.16371995]
[1735002193195,0.41373,94582.0,94578.0,0.16371995]
[1735002193498,0.41973,94582.0,94581.0,0.00111545]
[1735002197794,0.6668,94582.0,94553.0,0.0631]
[1735002197996,0.3608,94556.0,94553.0,0.0631]
[1735002198299,0.052945,94555.0,94553.0,0.0631]
[1735002198696,0.0001116,94554.0,94553.0,0.0631]
[1735002200199,0.052934,94574.0,94553.0,0.0631]
[1735002200401,0.052934,94574.0,94573.0,0.413735]
[1735002200603,0.0121404,94575.0,94573.0,0.413735]
[1735002200796,0.00158674,94575.0,94573.0,0.413735]
[1735002201103,0.052923,94594.0,94574.0,0.1098]
[1735002201301,0.052928,94585.0,94583.0,0.413729]
[1735002201695,0.052932,94579.0,94577.0,0.052932]
[1735002202001,0.3608,94590.0,94574.0,0.054]
[1735002202002,0.052934,94575.0,94574.0,0.054]
[1735002202402,0.052934,94575.0,94574.0,0.056]
[1735002202916,0.052934,94575.0,94574.0,0.054]
[1735002203703,0.052934,94575.0,94573.0,0.3608]
[1735002204404,0.055934,94575.0,94573.0,0.3608]
[1735002204806,0.003,94575.0,94563.0,0.0579]
[1735002205103,0.052934,94574.0,94563.0,0.11084]
[1735002205308,0.052938,94568.0,94563.0,0.11084]
[1735002205611,0.005,94575.0,94563.0,0.11084]
[1735002205912,0.05294,94565.0,94563.0,0.0579]
[1735002206303,0.05294,94565.0,94563.0,0.11084]
[1735002207308,0.052936,94571.0,94563.0,0.0579]
[1735002207504,0.052933,94577.0,94574.0,0.052934]
[1735002207715,0.052933,94576.0,94574.0,0.052934]
[1735002208206,0.3608,94580.0,94570.0,0.3608]
[1735002208906,0.004,94576.0,94570.0,0.3608]
[1735002209215,0.052935,94573.0,94568.0,0.052938]
[1735002209596,0.052936,94571.0,94568.0,0.052938]
[1735002209808,0.004,94576.0,94568.0,0.052938]
[1735002210110,0.052937,94570.0,94569.0,0.052936]
[1735002211206,0.054934,94576.0,94569.0,0.3608]
[1735002211403,0.052934,94576.0,94574.0,0.052934]
[1735002213715,0.056934,94576.0,94574.0,0.052934]
[1735002217112,0.057934,94576.0,94574.0,0.052934]
[1735002218316,0.005,94576.0,94574.0,0.052934]
[1735002218519,0.005,94576.0,94575.0,0.0572]
[1735002219112,0.005,94576.0,94575.0,0.29942935]
[1735002220117,0.006,94576.0,94575.0,0.29942935]
[1735002220713,0.052931,94579.0,94578.0,0.052932]
[1735002221810,0.056931,94579.0,94578.0,0.052932]
[1735002223212,0.052931,94579.0,94578.0,0.052932]
[1735002223415,0.059931,94579.0,94578.0,0.052932]
[1735002223820,0.052931,94579.0,94578.0,0.052932]
[1735002224022,0.060931,94579.0,94578.0,0.052932]
[1735002224916,0.07126209,94579.0,94578.0,0.052932]
[1735002226022,0.01833109,94579.0,94567.0,0.3608]
[1735002226216,0.052939,94566.0,94565.0,0.31659157]
[1735002227126,0.052934,94575.0,94557.0,0.31659157]
[1735002227417,0.052933,94577.0,94565.0,0.052939]
[1735002227418,0.052939,94566.0,94565.0,0.052939]
[1735002227622,0.054939,94566.0,94565.0,0.052939]
[1735002227822,0.002,94566.0,94565.0,0.052939]
[1735002228820,0.052935,94574.0,94573.0,0.052934]
[1735002231020,0.058935,94574.0,94573.0,0.052934]
[1735002232126,0.052935,94574.0,94573.0,0.052934]
[1735002232318,0.060935,94574.0,94573.0,0.052934]
[1735002234031,0.060935,94574.0,94573.0,0.36952557]
[1735002235231,0.060935,94574.0,94573.0,0.052934]
[1735002236328,0.008,94574.0,94570.0,0.31659157]
[1735002236625,0.052936,94571.0,94569.0,0.31659157]
[1735002236827,0.052937,94570.0,94569.0,0.31659157]
[1735002238031,0.05294,94564.0,94563.0,0.36953157]
[1735002239027,0.052937,94569.0,94568.0,0.052937]
[1735002239232,0.006,94570.0,94569.0,0.052937]
[1735002240425,0.12681636,94571.0,94570.0,0.052937]
[1735002240624,0.12681636,94571.0,94568.0,0.3608]
[1735002240625,0.052936,94572.0,94571.0,0.052936]
[1735002242035,0.052937,94569.0,94568.0,0.67739157]
[1735002242538,0.052942,94560.0,94559.0,0.37788546]
[1735002242737,0.413742,94560.0,94559.0,0.19750797]
[1735002243125,0.713742,94560.0,94559.0,0.10710797]
[1735002243334,0.713742,94560.0,94539.0,0.44162637]
[1735002243335,0.052953,94540.0,94539.0,0.44086637]
[1735002243537,0.052945,94555.0,94522.0,0.052963]
[1735002243538,0.3608,94546.0,94532.0,0.00076]
[1735002243725,0.3608,94546.0,94527.0,0.0988]
[1735002243930,0.05296,94528.0,94527.0,0.0988]
[1735002245026,0.052956,94536.0,94527.0,0.0988]
[1735002245226,0.052956,94536.0,94533.0,0.052957]
[1735002245436,0.0581,94555.0,94530.0,0.3608]
[1735002245747,0.15838512,94545.0,94544.0,0.052951]
[1735002246947,0.052947,94551.0,94549.0,0.052948]
[1735002247240,0.052947,94551.0,94550.0,0.06]
[1735002247947,0.052947,94551.0,94550.0,0.4208]
[1735002248135,0.058947,94551.0,94550.0,0.4811]
[1735002248639,0.052947,94551.0,94550.0,0.4811]
[1735002248840,0.058947,94551.0,94550.0,0.4811]
[1735002250443,0.053947,94551.0,94550.0,0.4831]
[1735002250935,0.052947,94551.0,94550.0,0.4811]
[1735002251137,0.058947,94551.0,94550.0,0.4811]
[1735002251532,0.052947,94551.0,94550.0,0.4811]
[1735002251733,0.057947,94551.0,94550.0,0.4811]
[1735002252035,0.052947,94551.0,94550.0,0.4811]
[1735002252231,0.058947,94551.0,94550.0,0.4811]
[1735002252626,0.058947,94551.0,94550.0,0.1203]
[1735002253240,0.058947,94551.0,94550.0,0.173248]
[1735002254034,0.058947,94551.0,94550.0,0.112948]
[1735002254227,0.052947,94551.0,94550.0,0.112948]
[1735002254433,0.058947,94551.0,94550.0,0.112948]
[1735002254830,0.052947,94551.0,94550.0,0.112948]
[1735002255038,0.058947,94551.0,94550.0,0.112948]
[1735002255934,0.058947,94551.0,94550.0,0.06]
[1735002256838,0.052947,94551.0,94550.0,0.06]
[1735002257039,0.057947,94551.0,94550.0,0.06]
[1735002257435,0.057947,94551.0,94550.0,0.112948]
[1735002257636,0.059947,94551.0,94550.0,0.112948]
[1735002258737,0.007,94551.0,94550.0,0.112948]
[1735002259048,0.01199393,94559.0,94558.0,0.052943]
[1735002259634,0.00158701,94559.0,94558.0,0.052943]
[1735002260444,0.00258701,94559.0,94558.0,0.054943]
[1735002260640,0.05553001,94559.0,94558.0,0.054943]
[1735002260845,0.05453001,94559.0,94558.0,0.052943]
[1735002261148,0.05553001,94559.0,94558.0,0.054943]
[1735002261941,0.00258701,94559.0,94558.0,0.054943]
[1735002262746,0.3608,94569.0,94568.0,0.052938]
[1735002262959,0.12657244,94572.0,94571.0,0.052936]
[1735002263150,0.052935,94573.0,94571.0,0.052936]
[1735002263450,0.51974513,94578.0,94556.0,0.3608]
[1735002263650,0.002,94559.0,94557.0,0.052944]
[1735002264046,0.052945,94556.0,94552.0,0.18984378]
[1735002264249,0.3608,94561.0,94552.0,0.24278978]
[1735002264440,0.052946,94554.0,94552.0,0.18984378]
[1735002264642,0.052946,94554.0,94552.0,0.25246014]
[1735002265936,0.052946,94554.0,94553.0,0.0542]
[1735002266853,0.058946,94554.0,94553.0,0.0542]
[1735002267451,0.053946,94554.0,94553.0,0.0632]
[1735002267947,0.059946,94554.0,94553.0,0.0552]
[1735002268447,0.052946,94554.0,94553.0,0.0542]
[1735002268648,0.053946,94554.0,94553.0,0.0632]
[1735002269453,0.053946,94554.0,94553.0,0.009]
[1735002270043,0.05295,94546.0,94545.0,0.18968564]
[1735002270547,0.05295,94546.0,94544.0,0.18968564]
[1735002271851,0.48755669,94549.0,94547.0,0.052949]
[1735002272154,0.54050569,94549.0,94547.0,0.052949]
[1735002272357,0.54050569,94549.0,94548.0,0.0588]
[1735002272751,0.48755669,94549.0,94548.0,0.0588]
[1735002272951,0.3608,94549.0,94548.0,0.0588]
[1735002274256,0.3668,94549.0,94548.0,0.0588]
[1735002274753,0.3608,94549.0,94548.0,0.0588]
[1735002274941,0.3688,94549.0,94548.0,0.0598]
[1735002275346,0.3608,94549.0,94548.0,0.0588]
[1735002275547,0.3648,94549.0,94548.0,0.0588]
[1735002276660,0.004,94549.0,94548.0,0.4196]
[1735002277151,0.12675669,94550.0,94549.0,0.052948]
[1735002277454,0.12675669,94551.0,94549.0,0.052948]
[1735002278351,0.005,94550.0,94549.0,0.053948]
[1735002278748,0.005,94550.0,94549.0,0.052948]
[1735002278952,0.005,94551.0,94549.0,0.052948]
[1735002279254,0.057947,94551.0,94549.0,0.052948]
[1735002279955,0.057947,94551.0,94550.0,0.052948]
[1735002280551,0.052947,94551.0,94550.0,0.052948]
[1735002281251,0.058947,94551.0,94550.0,0.053948]
[1735002281751,0.052947,94551.0,94550.0,0.30670544]
[1735002281954,0.058947,94551.0,94550.0,0.30770544]
[1735002282361,0.058947,94551.0,94550.0,0.66850544]
[1735002282954,0.058947,94551.0,94550.0,0.414748]
[1735002288048,0.12675669,94554.0,94550.0,0.414748]
[1735002288250,0.15838512,94560.0,94550.0,0.414748]
[1735002288454,0.15838512,94560.0,94559.0,0.052943]
[1735002289257,0.052945,94555.0,94554.0,0.052945]
[1735002290753,0.060945,94555.0,94554.0,0.053945]
[1735002291166,0.058945,94555.0,94554.0,0.053945]
[1735002292055,0.058945,94555.0,94554.0,0.30772038]
[1735002292564,0.058945,94555.0,94554.0,0.25477538]
[1735002293255,0.053945,94555.0,94554.0,0.009]
[1735002293656,0.01049237,94561.0,94548.0,0.0588]
[1735002293963,0.053945,94555.0,94554.0,0.008]
[1735002295051,0.052947,94551.0,94550.0,0.2538982]
[1735002296056,0.21133012,94555.0,94548.0,0.008]
[1735002296267,0.052948,94549.0,94548.0,0.008]
[1735002296465,0.21133012,94555.0,94546.0,0.2538982]
[1735002296668,0.052949,94547.0,94546.0,0.2538982]
[1735002297565,0.052951,94545.0,94544.0,0.052951]
[1735002297867,0.15838512,94553.0,94549.0,0.052948]
[1735002297868,0.052948,94550.0,94549.0,0.052948]
[1735002299552,0.01037965,94555.0,94547.0,0.2538982]
[1735002299752,0.052949,94548.0,94547.0,0.2538982]
[1735002300764,0.413749,94548.0,94546.0,0.2538982]
[1735002300961,0.0548,94547.0,94546.0,0.2538982]
[1735002302168,0.052957,94533.0,94532.0,0.19037316]
[1735002303463,0.15846195,94537.0,94530.0,0.3608]
[1735002303669,0.18944813,94544.0,94543.0,0.052952]
[1735002303855,0.20787543,94553.0,94552.0,0.052947]
[1735002304056,0.20787543,94553.0,94552.0,0.413747]
[1735002304469,0.00158683,94565.0,94564.0,0.05294]
[1735002307068,0.00258683,94565.0,94564.0,0.06194]
[1735002307562,0.00158683,94565.0,94564.0,0.05294]
[1735002307763,0.00158683,94565.0,94564.0,0.06194]
[1735002308671,0.00158683,94565.0,94564.0,0.05294]
[1735002309358,0.00158683,94565.0,94556.0,0.31652881]
[1735002309566,0.052943,94558.0,94556.0,0.31652881]
[1735002309963,0.3608,94557.0,94556.0,0.31652881]
[1735002310974,0.3608,94557.0,94548.0,0.18986856]
[1735002311274,0.052948,94549.0,94548.0,0.18986856]
[1735002312466,0.052952,94542.0,94541.0,0.18986856]
[1735002313866,0.052953,94540.0,94539.0,0.18986856]
[1735002315481,0.052953,94540.0,94538.0,0.18986856]
[1735002316267,0.052953,94540.0,94539.0,0.001]
[1735002316773,0.052953,94540.0,94538.0,0.19086856]
[1735002317573,0.052953,94540.0,94538.0,0.001]
[1735002317977,0.052953,94540.0,94539.0,0.001]
[1735002319075,0.09502381,94551.0,94539.0,0.001]
[1735002319272,0.09502381,94552.0,94549.0,0.052948]
[1735002319475,0.052948,94551.0,94549.0,0.052948]
[1735002320674,0.056948,94551.0,94549.0,0.052948]
[1735002320972,0.004,94551.0,94550.0,0.3608]
[1735002321371,0.004,94551.0,94550.0,0.4134]
[1735002322778,0.052941,94562.0,94550.0,0.4134]
[1735002323079,0.002,94551.0,94550.0,0.5209389]
[1735002323271,0.002,94551.0,94550.0,0.42414529]
[1735002323467,0.052942,94561.0,94550.0,0.42414529]
[1735002323672,0.052942,94561.0,94560.0,0.3608]
[1735002323874,0.052939,94566.0,94563.0,0.05294]
[1735002324265,0.05452583,94565.0,94563.0,0.05294]
[1735002325881,0.052944,94558.0,94556.0,0.052944]
[1735002327375,0.05294,94564.0,94562.0,0.052941]
[1735002327574,0.00258683,94565.0,94564.0,0.05294]
[1735002327780,0.00158683,94565.0,94564.0,0.05294]
[1735002328281,0.05452583,94565.0,94564.0,0.05294]
[1735002329180,0.05452583,94565.0,94559.0,0.52937254]
[1735002329487,0.05294,94563.0,94562.0,0.009]
[1735002329780,0.00158683,94565.0,94556.0,0.18963254]
[1735002329984,0.052944,94557.0,94556.0,0.18963254]
[1735002331382,0.052948,94549.0,94548.0,0.18963254]
[1735002332073,0.052942,94560.0,94548.0,0.18963254]
[1735002332271,0.052943,94558.0,94557.0,0.052944]
[1735002333484,0.053943,94558.0,94557.0,0.061944]
[1735002334877,0.053943,94558.0,94557.0,0.009]
[1735002337676,0.053943,94558.0,94557.0,0.3698]
[1735002338984,0.053943,94558.0,94557.0,0.55975663]
[1735002340487,0.053943,94558.0,94557.0,0.3698]
[1735002341490,0.053943,94558.0,94557.0,0.422744]
[1735002343392,0.001,94558.0,94557.0,0.422744]
[1735002351493,0.001,94558.0,94557.0,0.73927281]
[1735002352493,0.09596131,94558.0,94557.0,0.422744]
[1735002353899,0.001,94558.0,94557.0,0.422744]
[1735002355003,0.001,94558.0,94557.0,0.64690634]
[1735002356605,0.001,94558.0,94557.0,0.91390543]
[1735002358003,0.001,94558.0,94557.0,1.0274574]
[1735002359110,0.001,94558.0,94557.0,0.73990154]
[1735002361304,0.001,94558.0,94557.0,0.64666997]
[1735002366816,0.001,94558.0,94557.0,1.02722103]
[1735002368016,0.001,94558.0,94557.0,0.64666997]
[1735002370910,0.001,94558.0,94557.0,1.02722103]
[1735002371413,0.09518838,94572.0,94571.0,0.052936]
[1735002371608,0.09518838,94572.0,94571.0,0.413736]
[1735002372015,0.09518838,94572.0,94571.0,0.052936]
[1735002372607,0.15012338,94572.0,94571.0,0.052936]
[1735002372805,0.108635,94572.0,94571.0,0.3698752]
[1735002373905,0.107635,94572.0,94571.0,0.3788752]
[1735002374307,0.107635,94572.0,94571.0,0.061936]
[1735002375401,0.106635,94572.0,94571.0,0.052936]
[1735002376111,0.106635,94572.0,94571.0,0.057936]
[1735002377015,0.052936,94571.0,94570.0,0.25359737]
[1735002377214,0.413736,94571.0,94570.0,0.25359737]
[1735002377614,0.413736,94571.0,94570.0,0.16589737]
[1735002377814,0.413736,94571.0,94570.0,0.07819737]
[1735002378016,0.413736,94571.0,94557.0,0.38055106]
[1735002378017,0.05294,94564.0,94559.0,0.28400281]
[1735002378322,0.413742,94560.0,94559.0,0.28400281]
[1735002378520,0.413742,94560.0,94559.0,0.12220281]
[1735002378812,0.052946,94553.0,94552.0,0.29285106]
[1735002379016,0.413746,94553.0,94552.0,0.29285106]
[1735002380012,0.052948,94549.0,94548.0,0.19034607]
[1735002381621,0.052955,94538.0,94529.0,0.19034607]
[1735002381817,0.3608,94544.0,94542.0,0.052952]
[1735002382017,0.052952,94543.0,94541.0,0.052953]
[1735002383112,0.052955,94538.0,94535.0,0.052956]
[1735002383507,0.052955,94538.0,94534.0,0.19034607]
[1735002383721,0.052955,94538.0,94536.0,0.052955]
[1735002385212,0.052952,94543.0,94541.0,0.052953]
[1735002385408,0.052952,94543.0,94542.0,0.0582]
[1735002386923,0.052952,94543.0,94542.0,0.0642]
[1735002388318,0.052952,94543.0,94542.0,0.0632]
[1735002388919,0.052952,94543.0,94542.0,0.0642]
[1735002389318,0.052953,94541.0,94539.0,0.043154]
[1735002391728,0.053953,94541.0,94539.0,0.051154]
[1735002392025,0.053953,94541.0,94540.0,0.02266043]
[1735002392226,0.052953,94541.0,94540.0,0.02266043]
[1735002392427,0.053953,94541.0,94540.0,0.02266043]
[1735002393429,0.053953,94541.0,94540.0,0.02966043]
[1735002394929,0.052953,94541.0,94540.0,0.02266043]
[1735002395126,0.056953,94541.0,94540.0,0.02266043]
[1735002395818,0.09495973,94551.0,94540.0,0.02266043]